[Event "Early-Titled-Tuesday-Blitz-December-26-2023"]
[Site "Chess.com"]
[Date "2023.12.26"]
[Round "11"]
[White "jcmesafischer"]
[Black "MikeSailer"]
[Result "1-0"]
[WhiteElo "2326"]
[BlackElo "2184"]
[TimeControl "180+1"]
[EndTime "10:04:33 PST"]
[Termination "jcmesafischer won by resignation"]

1. e4 {[%clk 0:02:55.4]} 1... d5 {[%clk 0:02:48.8]} 2. exd5 {[%clk 0:02:49.6]}
2... Qxd5 {[%clk 0:02:48.4]} 3. Nc3 {[%clk 0:02:46.4]} 3... Qd6 {[%clk
0:02:48.6]} 4. g3 {[%clk 0:02:40.1]} 4... Nf6 {[%clk 0:02:45.5]} 5. Bg2 {[%clk
0:02:38.5]} 5... c6 {[%clk 0:02:36.9]} 6. d3 {[%clk 0:02:35.3]} 6... g6 {[%clk
0:02:23.4]} 7. Nf3 {[%clk 0:02:30.7]} 7... Bg7 {[%clk 0:02:23.6]} 8. Bf4 {[%clk
0:02:30.4]} 8... Qd8 {[%clk 0:02:21.2]} 9. O-O {[%clk 0:02:29.8]} 9... O-O
{[%clk 0:02:20.5]} 10. Qd2 {[%clk 0:02:29.4]} 10... Nbd7 {[%clk 0:02:07.8]} 11.
Rfe1 {[%clk 0:02:24.2]} 11... Nb6 {[%clk 0:02:04.8]} 12. Bh6 {[%clk 0:02:18.7]}
12... Nbd5 {[%clk 0:01:53.5]} 13. Bxg7 {[%clk 0:02:14.6]} 13... Kxg7 {[%clk
0:01:52.8]} 14. Ne4 {[%clk 0:02:14.1]} 14... Bg4 {[%clk 0:01:44.8]} 15. Ne5
{[%clk 0:02:10.6]} 15... Bf5 {[%clk 0:01:35.2]} 16. h3 {[%clk 0:01:21.2]} 16...
Qc8 {[%clk 0:01:26.3]} 17. g4 {[%clk 0:01:20.2]} 17... Be6 {[%clk 0:01:21.6]}
18. Nc5 {[%clk 0:01:16.9]} 18... b6 {[%clk 0:00:53.3]} 19. Nxe6+ {[%clk
0:01:14.7]} 19... fxe6 {[%clk 0:00:46.9]} 20. c4 {[%clk 0:01:13.9]} 20... Nc7
{[%clk 0:00:42.8]} 21. Nxc6 {[%clk 0:01:06.6]} 21... Rf7 {[%clk 0:00:26.1]} 22.
Ne5 {[%clk 0:01:01.9]} 22... Rb8 {[%clk 0:00:24.1]} 23. Nxf7 {[%clk 0:00:59.6]}
23... Kxf7 {[%clk 0:00:23.6]} 24. Qf4 {[%clk 0:00:52.9]} 24... Kg7 {[%clk
0:00:24.1]} 25. Qe5 {[%clk 0:00:51.8]} 25... Kf7 {[%clk 0:00:19.9]} 26. d4
{[%clk 0:00:42.4]} 26... Nce8 {[%clk 0:00:19.9]} 27. d5 {[%clk 0:00:37.6]} 27...
Qxc4 {[%clk 0:00:13.1]} 28. Qxe6+ {[%clk 0:00:36]} 1-0

[Event "Early-Titled-Tuesday-Blitz-December-26-2023"]
[Site "Chess.com"]
[Date "2023.12.26"]
[Round "11"]
[White "Elsa167"]
[Black "rquery98"]
[Result "1-0"]
[WhiteElo "2980"]
[BlackElo "2778"]
[TimeControl "180+1"]
[EndTime "10:04:34 PST"]
[Termination "Elsa167 won by resignation"]

1. e4 {[%clk 0:03:00.9]} 1... e5 {[%clk 0:02:54.7]} 2. f4 {[%clk 0:03:00.8]}
2... d5 {[%clk 0:02:53]} 3. exd5 {[%clk 0:03:00.4]} 3... exf4 {[%clk 0:02:51.3]}
4. Nf3 {[%clk 0:03:00.4]} 4... Nf6 {[%clk 0:02:49]} 5. Bb5+ {[%clk 0:02:59.8]}
5... Bd7 {[%clk 0:02:44.3]} 6. Bxd7+ {[%clk 0:02:59.1]} 6... Qxd7 {[%clk
0:02:34.3]} 7. c4 {[%clk 0:02:58.5]} 7... c6 {[%clk 0:02:30.6]} 8. dxc6 {[%clk
0:02:58.2]} 8... Nxc6 {[%clk 0:02:31.5]} 9. d4 {[%clk 0:02:58.5]} 9... Bb4+
{[%clk 0:02:16.3]} 10. Nc3 {[%clk 0:02:56.2]} 10... O-O-O {[%clk 0:01:53.6]} 11.
O-O {[%clk 0:02:27.5]} 11... Nxd4 {[%clk 0:01:49.7]} 12. Bxf4 {[%clk 0:02:22.9]}
12... Qf5 {[%clk 0:01:18.1]} 13. Nxd4 {[%clk 0:01:27.2]} 13... Bc5 {[%clk
0:01:18.2]} 14. Nd5 {[%clk 0:01:05.9]} 14... Qe4 {[%clk 0:00:41.5]} 15. Kh1
{[%clk 0:00:41.9]} 15... Qxd4 {[%clk 0:00:36.9]} 16. Qc2 {[%clk 0:00:26.5]}
16... Ne4 {[%clk 0:00:25.8]} 17. Rad1 {[%clk 0:00:21.3]} 17... Nf2+ {[%clk
0:00:08.8]} 18. Rxf2 {[%clk 0:00:21.3]} 18... Qxf2 {[%clk 0:00:08.1]} 19. Qf5+
{[%clk 0:00:21.5]} 19... Rd7 {[%clk 0:00:07.1]} 20. Nb6+ {[%clk 0:00:21.3]} 1-0

[Event "Early-Titled-Tuesday-Blitz-December-26-2023"]
[Site "Chess.com"]
[Date "2023.12.26"]
[Round "11"]
[White "laskakid"]
[Black "Let_it_be_1"]
[Result "0-1"]
[WhiteElo "2360"]
[BlackElo "2549"]
[TimeControl "180+1"]
[EndTime "10:04:34 PST"]
[Termination "Let_it_be_1 won by resignation"]

1. d4 {[%clk 0:03:00.9]} 1... d5 {[%clk 0:02:57.5]} 2. c4 {[%clk 0:03:00.8]}
2... e6 {[%clk 0:02:57.2]} 3. Nc3 {[%clk 0:03:00.9]} 3... Be7 {[%clk 0:02:57.6]}
4. Bf4 {[%clk 0:02:54.7]} 4... Nf6 {[%clk 0:02:56.8]} 5. e3 {[%clk 0:02:54.7]}
5... O-O {[%clk 0:02:56.5]} 6. a3 {[%clk 0:02:53.6]} 6... Nbd7 {[%clk
0:02:55.8]} 7. Nb5 {[%clk 0:02:49]} 7... Ne8 {[%clk 0:02:55]} 8. Nf3 {[%clk
0:02:44.4]} 8... a6 {[%clk 0:02:54.6]} 9. Nc3 {[%clk 0:02:43.9]} 9... Nef6
{[%clk 0:02:51.1]} 10. c5 {[%clk 0:02:40.6]} 10... c6 {[%clk 0:02:45]} 11. h3
{[%clk 0:02:35.8]} 11... b6 {[%clk 0:02:40.7]} 12. b4 {[%clk 0:02:29.9]} 12...
a5 {[%clk 0:02:41.1]} 13. Bd3 {[%clk 0:02:28.4]} 13... Ba6 {[%clk 0:02:40.6]}
14. Bxa6 {[%clk 0:02:14.8]} 14... Rxa6 {[%clk 0:02:40.2]} 15. b5 {[%clk
0:02:15]} 15... cxb5 {[%clk 0:02:40.3]} 16. c6 {[%clk 0:02:14.7]} 16... Qc8
{[%clk 0:02:40.5]} 17. Nxb5 {[%clk 0:01:46.2]} 17... Qxc6 {[%clk 0:02:39.3]} 18.
Qe2 {[%clk 0:01:45.9]} 18... a4 {[%clk 0:02:35.2]} 19. O-O {[%clk 0:01:44]}
19... Ra5 {[%clk 0:02:34.4]} 20. Rab1 {[%clk 0:01:39.5]} 20... Rc8 {[%clk
0:02:30.6]} 21. Kh2 {[%clk 0:01:06.9]} 21... Ne4 {[%clk 0:02:26.4]} 22. Rfc1
{[%clk 0:01:01.3]} 22... Qxc1 {[%clk 0:02:25.9]} 23. Rxc1 {[%clk 0:01:01.3]}
23... Rxc1 {[%clk 0:02:26.1]} 24. Ne5 {[%clk 0:00:51.5]} 24... Nxe5 {[%clk
0:02:16.4]} 25. Bxe5 {[%clk 0:00:48.9]} 25... f6 {[%clk 0:01:56.7]} 26. Bb8
{[%clk 0:00:42.1]} 26... Rc4 {[%clk 0:01:29.7]} 27. Nc7 {[%clk 0:00:32.8]} 27...
Bd6+ {[%clk 0:01:23]} 28. g3 {[%clk 0:00:28.6]} 28... Bxc7 {[%clk 0:01:22.6]}
29. Bxc7 {[%clk 0:00:26.1]} 29... Rxc7 {[%clk 0:01:22.7]} 30. Qg4 {[%clk
0:00:26.1]} 30... Rc6 {[%clk 0:01:09.1]} 31. Qf4 {[%clk 0:00:24]} 31... Ra8
{[%clk 0:01:05.6]} 32. h4 {[%clk 0:00:18.9]} 32... Rac8 {[%clk 0:01:04.3]} 33.
h5 {[%clk 0:00:17.6]} 33... h6 {[%clk 0:01:01.9]} 34. g4 {[%clk 0:00:16.7]}
34... Nxf2 {[%clk 0:00:55.4]} 0-1

[Event "Early-Titled-Tuesday-Blitz-December-26-2023"]
[Site "Chess.com"]
[Date "2023.12.26"]
[Round "11"]
[White "Drags95"]
[Black "Alex_Sahakyan2006"]
[Result "1-0"]
[WhiteElo "2804"]
[BlackElo "2713"]
[TimeControl "180+1"]
[EndTime "10:04:51 PST"]
[Termination "Drags95 won by resignation"]

1. e4 {[%clk 0:03:00.9]} 1... c5 {[%clk 0:02:58]} 2. Nf3 {[%clk 0:03:01.3]} 2...
g6 {[%clk 0:02:58]} 3. d4 {[%clk 0:02:56.5]} 3... cxd4 {[%clk 0:02:58.9]} 4.
Nxd4 {[%clk 0:02:56.4]} 4... Bg7 {[%clk 0:02:59.3]} 5. c4 {[%clk 0:02:56]} 5...
Nf6 {[%clk 0:02:54.4]} 6. Nc3 {[%clk 0:02:55.7]} 6... Nc6 {[%clk 0:02:52.4]} 7.
Be3 {[%clk 0:02:49]} 7... d6 {[%clk 0:02:46.2]} 8. Be2 {[%clk 0:02:47.8]} 8...
O-O {[%clk 0:02:45.4]} 9. O-O {[%clk 0:02:47.2]} 9... Nxd4 {[%clk 0:02:43.1]}
10. Bxd4 {[%clk 0:02:47.5]} 10... Be6 {[%clk 0:02:43.5]} 11. Qc2 {[%clk
0:02:41.5]} 11... a5 {[%clk 0:02:36.1]} 12. b3 {[%clk 0:02:41]} 12... Nd7 {[%clk
0:02:36.3]} 13. Bxg7 {[%clk 0:02:38.8]} 13... Kxg7 {[%clk 0:02:37.2]} 14. Rad1
{[%clk 0:02:33.6]} 14... Qb6 {[%clk 0:02:37.6]} 15. Na4 {[%clk 0:02:29.4]} 15...
Qc6 {[%clk 0:02:33.8]} 16. f4 {[%clk 0:02:19.1]} 16... f6 {[%clk 0:02:32.3]} 17.
Bf3 {[%clk 0:02:15.9]} 17... Qc7 {[%clk 0:02:30.9]} 18. Nc3 {[%clk 0:02:07]}
18... Qc5+ {[%clk 0:02:24.4]} 19. Kh1 {[%clk 0:02:07.1]} 19... Bf7 {[%clk
0:01:56]} 20. Nd5 {[%clk 0:02:03.9]} 20... Rfe8 {[%clk 0:01:56.2]} 21. Bg4
{[%clk 0:01:58.1]} 21... e6 {[%clk 0:01:47.8]} 22. Nc3 {[%clk 0:01:58.4]} 22...
Rad8 {[%clk 0:01:47.3]} 23. Na4 {[%clk 0:01:55.1]} 23... Qc7 {[%clk 0:01:46.2]}
24. Nc3 {[%clk 0:01:42.3]} 24... Nc5 {[%clk 0:01:45.2]} 25. Nb5 {[%clk
0:01:38.4]} 25... Qc6 {[%clk 0:01:41.7]} 26. e5 {[%clk 0:01:20.4]} 26... dxe5
{[%clk 0:01:17.4]} 27. Rxd8 {[%clk 0:01:21.3]} 27... Rxd8 {[%clk 0:01:14.7]} 28.
fxe5 {[%clk 0:01:21.9]} 28... f5 {[%clk 0:01:13.5]} 29. Bf3 {[%clk 0:01:21.5]}
29... Qb6 {[%clk 0:01:10.9]} 30. Nd6 {[%clk 0:01:19.8]} 30... Nd7 {[%clk
0:01:08.4]} 31. Nxb7 {[%clk 0:01:14]} 31... Rb8 {[%clk 0:01:03.8]} 32. c5 {[%clk
0:01:14.1]} 32... Qc7 {[%clk 0:01:02.8]} 33. Re1 {[%clk 0:01:07.4]} 33... g5
{[%clk 0:00:42.2]} 34. c6 {[%clk 0:01:01.4]} 34... g4 {[%clk 0:00:31.6]} 35. Bd1
{[%clk 0:00:55.6]} 35... Nxe5 {[%clk 0:00:20.6]} 36. Qc3 {[%clk 0:00:50.5]}
36... Kf6 {[%clk 0:00:21.1]} 37. Nxa5 {[%clk 0:00:47.9]} 37... Rb5 {[%clk
0:00:17.6]} 38. Nc4 {[%clk 0:00:44.7]} 38... Rc5 {[%clk 0:00:17.9]} 39. Rxe5
{[%clk 0:00:41.8]} 39... Qxe5 {[%clk 0:00:16.2]} 40. Qxe5+ {[%clk 0:00:41.6]}
40... Rxe5 {[%clk 0:00:16.6]} 41. Nxe5 {[%clk 0:00:42.5]} 41... Kxe5 {[%clk
0:00:17.2]} 42. c7 {[%clk 0:00:42.9]} 1-0

[Event "Early-Titled-Tuesday-Blitz-December-26-2023"]
[Site "Chess.com"]
[Date "2023.12.26"]
[Round "11"]
[White "AlexanderL"]
[Black "Hikaru"]
[Result "0-1"]
[WhiteElo "2899"]
[BlackElo "3220"]
[TimeControl "180+1"]
[EndTime "10:04:54 PST"]
[Termination "Hikaru won by checkmate"]

1. d4 {[%clk 0:03:00.9]} 1... a6 {[%clk 0:02:51.4]} 2. Nf3 {[%clk 0:02:56.4]}
2... d6 {[%clk 0:02:49.2]} 3. g3 {[%clk 0:02:51.9]} 3... b5 {[%clk 0:02:45.2]}
4. Bg2 {[%clk 0:02:52.1]} 4... Bb7 {[%clk 0:02:45.9]} 5. O-O {[%clk 0:02:52.3]}
5... Nf6 {[%clk 0:02:46.5]} 6. Nbd2 {[%clk 0:02:50.7]} 6... Nbd7 {[%clk
0:02:44.9]} 7. Re1 {[%clk 0:02:50.9]} 7... c5 {[%clk 0:02:44.8]} 8. e4 {[%clk
0:02:49.4]} 8... cxd4 {[%clk 0:02:42.8]} 9. Nxd4 {[%clk 0:02:49.8]} 9... e5
{[%clk 0:02:42.4]} 10. Nf5 {[%clk 0:02:47.8]} 10... g6 {[%clk 0:02:42.8]} 11.
Ne3 {[%clk 0:02:48.1]} 11... Be7 {[%clk 0:02:36.4]} 12. a4 {[%clk 0:02:44.8]}
12... O-O {[%clk 0:02:35.7]} 13. axb5 {[%clk 0:02:45]} 13... axb5 {[%clk
0:02:36.6]} 14. Rxa8 {[%clk 0:02:38.2]} 14... Qxa8 {[%clk 0:02:37.5]} 15. c4
{[%clk 0:02:34.2]} 15... bxc4 {[%clk 0:02:08.8]} 16. Ndxc4 {[%clk 0:02:32.8]}
16... Nxe4 {[%clk 0:02:06.4]} 17. f3 {[%clk 0:02:14.9]} 17... Ng5 {[%clk
0:01:58.9]} 18. Rf1 {[%clk 0:01:58.1]} 18... d5 {[%clk 0:01:53]} 19. f4 {[%clk
0:01:57.9]} 19... dxc4 {[%clk 0:01:51.7]} 20. Qxd7 {[%clk 0:01:51]} 20... Bxg2
{[%clk 0:01:51.4]} 21. Nxg2 {[%clk 0:01:46.9]} 21... Bc5+ {[%clk 0:01:47.1]} 22.
Kh1 {[%clk 0:01:45.7]} 22... Ne4 {[%clk 0:01:41.4]} 23. fxe5 {[%clk 0:01:18.2]}
23... Nf2+ {[%clk 0:01:38.5]} 24. Rxf2 {[%clk 0:01:18.6]} 24... Bxf2 {[%clk
0:01:39]} 25. e6 {[%clk 0:01:19.2]} 25... Bc5 {[%clk 0:01:14]} 26. h4 {[%clk
0:01:04.7]} 26... Qf3 {[%clk 0:00:50.5]} 27. Bh6 {[%clk 0:01:03.2]} 27... Qf1+
{[%clk 0:00:45.3]} 28. Kh2 {[%clk 0:01:03.6]} 28... Bg1+ {[%clk 0:00:45.9]} 29.
Kh1 {[%clk 0:01:02.9]} 29... Bc5+ {[%clk 0:00:17.6]} 30. Kh2 {[%clk 0:01:02.1]}
30... Qg1+ {[%clk 0:00:18]} 31. Kh3 {[%clk 0:01:02.6]} 31... Qh1+ {[%clk
0:00:18.2]} 32. Kg4 {[%clk 0:01:03.2]} 32... Qxg2 {[%clk 0:00:13.4]} 33. Bxf8
{[%clk 0:00:48.6]} 33... h5+ {[%clk 0:00:12.2]} 34. Kf4 {[%clk 0:00:40.2]} 34...
Qf2+ {[%clk 0:00:11.3]} 35. Ke5 {[%clk 0:00:24.4]} 35... Qf5# {[%clk 0:00:12.2]}
0-1

[Event "Early-Titled-Tuesday-Blitz-December-26-2023"]
[Site "Chess.com"]
[Date "2023.12.26"]
[Round "11"]
[White "MightyGMpretender"]
[Black "mbojan"]
[Result "0-1"]
[WhiteElo "2754"]
[BlackElo "2910"]
[TimeControl "180+1"]
[EndTime "10:04:55 PST"]
[Termination "mbojan won by resignation"]

1. Nf3 {[%clk 0:03:00.9]} 1... a6 {[%clk 0:02:56.2]} 2. g3 {[%clk 0:03:01.8]}
2... d6 {[%clk 0:02:55.6]} 3. Bg2 {[%clk 0:03:02.3]} 3... Bd7 {[%clk 0:02:55.1]}
4. O-O {[%clk 0:03:02.5]} 4... g6 {[%clk 0:02:55.6]} 5. e4 {[%clk 0:03:02]} 5...
Bg7 {[%clk 0:02:55.9]} 6. Re1 {[%clk 0:03:02.7]} 6... Qc8 {[%clk 0:02:56]} 7. e5
{[%clk 0:03:02.4]} 7... Nc6 {[%clk 0:02:50.9]} 8. exd6 {[%clk 0:03:00.6]} 8...
cxd6 {[%clk 0:02:51.8]} 9. d4 {[%clk 0:03:00.3]} 9... d5 {[%clk 0:02:45]} 10.
Nc3 {[%clk 0:03:00.7]} 10... Nf6 {[%clk 0:02:44.7]} 11. Bg5 {[%clk 0:03:01]}
11... Be6 {[%clk 0:02:35]} 12. Na4 {[%clk 0:02:52.9]} 12... Nd7 {[%clk
0:02:11.8]} 13. c4 {[%clk 0:02:46.5]} 13... O-O {[%clk 0:02:10.1]} 14. Rc1
{[%clk 0:02:33.6]} 14... b5 {[%clk 0:02:04.8]} 15. cxb5 {[%clk 0:02:21.7]} 15...
axb5 {[%clk 0:02:05.7]} 16. Nc3 {[%clk 0:02:22.2]} 16... b4 {[%clk 0:02:02.6]}
17. Na4 {[%clk 0:02:22.6]} 17... Qa6 {[%clk 0:01:55.2]} 18. b3 {[%clk 0:02:23]}
18... Rfc8 {[%clk 0:01:45]} 19. Qd2 {[%clk 0:02:22.5]} 19... Bf6 {[%clk
0:01:32.8]} 20. Bxf6 {[%clk 0:02:13.8]} 20... exf6 {[%clk 0:01:33.7]} 21. Rc2
{[%clk 0:02:08.8]} 21... Bf5 {[%clk 0:01:33.3]} 22. Rcc1 {[%clk 0:02:07.9]}
22... Be6 {[%clk 0:01:33.9]} 23. Qf4 {[%clk 0:01:58]} 23... Ne7 {[%clk
0:01:23.7]} 24. Bf1 {[%clk 0:01:46.3]} 24... Qb7 {[%clk 0:01:18.5]} 25. h3
{[%clk 0:01:34.2]} 25... Kg7 {[%clk 0:01:14.8]} 26. g4 {[%clk 0:01:33.5]} 26...
g5 {[%clk 0:01:12]} 27. Qd6 {[%clk 0:01:33.4]} 27... Ng6 {[%clk 0:01:05.5]} 28.
Rxc8 {[%clk 0:01:27.9]} 28... Rxc8 {[%clk 0:01:02.4]} 29. Ba6 {[%clk 0:01:18.2]}
29... Qc6 {[%clk 0:01:02.5]} 30. Qxb4 {[%clk 0:01:18]} 30... Qxa6 {[%clk
0:01:01.2]} 31. Nc5 {[%clk 0:01:18.7]} 31... Nxc5 {[%clk 0:00:53.8]} 32. dxc5
{[%clk 0:01:19.4]} 32... Nf4 {[%clk 0:00:53.9]} 33. Nd4 {[%clk 0:01:11.2]} 33...
Nd3 {[%clk 0:00:44.4]} 34. Qd2 {[%clk 0:01:09.1]} 34... Nxe1 {[%clk 0:00:44.2]}
35. b4 {[%clk 0:01:07.6]} 35... Qd3 {[%clk 0:00:28.2]} 36. Nxe6+ {[%clk
0:01:06.4]} 36... fxe6 {[%clk 0:00:29.1]} 37. Qxe1 {[%clk 0:01:07.2]} 37... Qe4
{[%clk 0:00:27.3]} 38. Qxe4 {[%clk 0:00:40.4]} 38... dxe4 {[%clk 0:00:28.2]} 39.
a4 {[%clk 0:00:40.7]} 39... Kf7 {[%clk 0:00:28.2]} 40. a5 {[%clk 0:00:41]} 40...
Rb8 {[%clk 0:00:21.8]} 41. c6 {[%clk 0:00:40.5]} 41... Rxb4 {[%clk 0:00:22]} 42.
a6 {[%clk 0:00:41.2]} 42... Rb8 {[%clk 0:00:22.2]} 43. a7 {[%clk 0:00:39.4]}
43... Ra8 {[%clk 0:00:22.4]} 44. c7 {[%clk 0:00:40.3]} 44... Ke7 {[%clk
0:00:22.7]} 0-1

[Event "Early-Titled-Tuesday-Blitz-December-26-2023"]
[Site "Chess.com"]
[Date "2023.12.26"]
[Round "11"]
[White "hsmile"]
[Black "ZaidejasChEgis"]
[Result "1-0"]
[WhiteElo "2096"]
[BlackElo "2207"]
[TimeControl "180+1"]
[EndTime "10:04:55 PST"]
[Termination "hsmile won by checkmate"]

1. d4 {[%clk 0:03:00.9]} 1... d5 {[%clk 0:02:57.8]} 2. Nc3 {[%clk 0:03:00.8]}
2... Nf6 {[%clk 0:02:57.2]} 3. Bg5 {[%clk 0:03:00.3]} 3... e6 {[%clk 0:02:56.6]}
4. e4 {[%clk 0:02:59.6]} 4... dxe4 {[%clk 0:02:55.7]} 5. Nxe4 {[%clk 0:03:00.5]}
5... Be7 {[%clk 0:02:55.5]} 6. Bxf6 {[%clk 0:03:00.6]} 6... Bxf6 {[%clk
0:02:54.8]} 7. Nf3 {[%clk 0:03:00.5]} 7... O-O {[%clk 0:02:51.5]} 8. c3 {[%clk
0:02:59.7]} 8... Nd7 {[%clk 0:02:48.8]} 9. Bd3 {[%clk 0:02:58.6]} 9... Be7
{[%clk 0:02:48.5]} 10. Qc2 {[%clk 0:02:52]} 10... h6 {[%clk 0:02:47.2]} 11.
O-O-O {[%clk 0:02:49.2]} 11... a5 {[%clk 0:02:43.9]} 12. h4 {[%clk 0:02:47.2]}
12... a4 {[%clk 0:02:42.8]} 13. a3 {[%clk 0:02:46]} 13... Nf6 {[%clk 0:02:41.3]}
14. Ne5 {[%clk 0:02:36.3]} 14... c6 {[%clk 0:02:39.6]} 15. Kb1 {[%clk
0:02:23.4]} 15... Nd5 {[%clk 0:02:28.4]} 16. g3 {[%clk 0:02:15.4]} 16... f5
{[%clk 0:02:14.5]} 17. Nd2 {[%clk 0:02:06.9]} 17... Bf6 {[%clk 0:02:08.2]} 18.
Ndf3 {[%clk 0:02:05.7]} 18... f4 {[%clk 0:02:06.6]} 19. g4 {[%clk 0:02:02.9]}
19... Qc7 {[%clk 0:02:02.1]} 20. Bh7+ {[%clk 0:01:57]} 20... Kh8 {[%clk
0:01:56.3]} 21. Ng6+ {[%clk 0:01:50.4]} 21... Kxh7 {[%clk 0:01:53.3]} 22. Nxf8+
{[%clk 0:01:48.1]} 22... Kg8 {[%clk 0:01:53.2]} 23. Ng6 {[%clk 0:01:43.2]} 23...
b5 {[%clk 0:01:51.5]} 24. g5 {[%clk 0:01:37]} 24... Bd8 {[%clk 0:01:48.3]} 25.
gxh6 {[%clk 0:01:31]} 25... gxh6 {[%clk 0:01:47.3]} 26. Rhg1 {[%clk 0:01:26.8]}
26... Kf7 {[%clk 0:01:47.3]} 27. Nge5+ {[%clk 0:01:24.1]} 27... Ke8 {[%clk
0:01:44.5]} 28. Qg6+ {[%clk 0:01:21.9]} 28... Ke7 {[%clk 0:01:42.8]} 29. Qh7+
{[%clk 0:01:14.3]} 29... Kd6 {[%clk 0:01:42.6]} 30. Nf7+ {[%clk 0:01:14]} 30...
Kd7 {[%clk 0:01:40.7]} 31. N7e5+ {[%clk 0:01:11.7]} 31... Kd6 {[%clk 0:01:40.6]}
32. Rg7 {[%clk 0:01:10.2]} 32... Be7 {[%clk 0:01:34.9]} 33. Ng6 {[%clk
0:01:05.3]} 33... Ba6 {[%clk 0:01:31.2]} 34. Nxe7 {[%clk 0:01:03]} 34... Nxe7
{[%clk 0:01:29.8]} 35. Ne5 {[%clk 0:00:59.9]} 35... Re8 {[%clk 0:01:17.2]} 36.
Qxh6 {[%clk 0:00:49.6]} 36... Nf5 {[%clk 0:01:08.4]} 37. Rxc7 {[%clk 0:00:46.7]}
37... Nxh6 {[%clk 0:01:07.5]} 38. Rxc6+ {[%clk 0:00:46.8]} 38... Kd5 {[%clk
0:01:06.4]} 39. Rxa6 {[%clk 0:00:45.1]} 39... Ng4 {[%clk 0:01:04.9]} 40. f3
{[%clk 0:00:42]} 40... Ne3 {[%clk 0:01:04.6]} 41. Rg1 {[%clk 0:00:41.6]} 41...
Rh8 {[%clk 0:01:01.8]} 42. Rg6 {[%clk 0:00:41]} 42... Rxh4 {[%clk 0:01:00.3]}
43. Rgxe6 {[%clk 0:00:37]} 43... Rh1+ {[%clk 0:00:59.4]} 44. Ka2 {[%clk
0:00:32]} 44... Nc4 {[%clk 0:00:53.1]} 45. Rec6 {[%clk 0:00:26.1]} 45... Nxe5
{[%clk 0:00:46.6]} 46. Rc5# {[%clk 0:00:25.6]} 1-0

[Event "Early-Titled-Tuesday-Blitz-December-26-2023"]
[Site "Chess.com"]
[Date "2023.12.26"]
[Round "11"]
[White "wqws"]
[Black "DeyanKostov"]
[Result "1-0"]
[WhiteElo "2710"]
[BlackElo "2489"]
[TimeControl "180+1"]
[EndTime "10:05:02 PST"]
[Termination "wqws won by checkmate"]

1. d4 {[%clk 0:03:00.9]} 1... d5 {[%clk 0:02:59.9]} 2. Nf3 {[%clk 0:02:45.3]}
2... Nf6 {[%clk 0:02:59.7]} 3. e3 {[%clk 0:02:42.6]} 3... Bg4 {[%clk 0:02:58.8]}
4. h3 {[%clk 0:02:41.7]} 4... Bh5 {[%clk 0:02:56.3]} 5. c4 {[%clk 0:02:41.3]}
5... dxc4 {[%clk 0:02:56]} 6. Nc3 {[%clk 0:02:40.8]} 6... e6 {[%clk 0:02:56]} 7.
Bxc4 {[%clk 0:02:40.6]} 7... a6 {[%clk 0:02:56.5]} 8. g4 {[%clk 0:02:39.6]} 8...
Bg6 {[%clk 0:02:56.3]} 9. Ne5 {[%clk 0:02:40.3]} 9... Nbd7 {[%clk 0:02:56.8]}
10. f4 {[%clk 0:02:38.5]} 10... Nxe5 {[%clk 0:02:52]} 11. fxe5 {[%clk
0:02:38.6]} 11... Ne4 {[%clk 0:02:45.5]} 12. h4 {[%clk 0:02:21.3]} 12... Nxc3
{[%clk 0:02:33.3]} 13. bxc3 {[%clk 0:02:21]} 13... Be4 {[%clk 0:02:33.6]} 14.
Rh2 {[%clk 0:02:17.6]} 14... Be7 {[%clk 0:02:33.4]} 15. h5 {[%clk 0:02:09.6]}
15... Bh4+ {[%clk 0:02:31.5]} 16. Kf1 {[%clk 0:02:09.5]} 16... O-O {[%clk
0:02:23.9]} 17. Bd3 {[%clk 0:01:57]} 17... Bc6 {[%clk 0:02:17.6]} 18. g5 {[%clk
0:01:45.6]} 18... Qxg5 {[%clk 0:02:08.9]} 19. e4 {[%clk 0:01:45.5]} 19... Qg3
{[%clk 0:01:33.6]} 20. Rg2 {[%clk 0:01:43.7]} 20... Qh3 {[%clk 0:01:32.7]} 21.
Bh6 {[%clk 0:01:39.5]} 21... Qh1+ {[%clk 0:01:19.6]} 22. Rg1 {[%clk 0:01:39.2]}
22... Qh3+ {[%clk 0:01:18.5]} 23. Rg2 {[%clk 0:01:37.6]} 23... g6 {[%clk
0:00:59.5]} 24. Bxf8 {[%clk 0:01:15.6]} 24... Rxf8 {[%clk 0:01:00.4]} 25. Kg1
{[%clk 0:01:01.1]} 25... g5 {[%clk 0:00:37.9]} 26. Qe2 {[%clk 0:00:54.4]} 26...
f6 {[%clk 0:00:34.3]} 27. Rf1 {[%clk 0:00:51.4]} 27... fxe5 {[%clk 0:00:30.6]}
28. Rxf8+ {[%clk 0:00:52.3]} 28... Kxf8 {[%clk 0:00:31.1]} 29. Qf1+ {[%clk
0:00:53.1]} 29... Ke7 {[%clk 0:00:29.5]} 30. dxe5 {[%clk 0:00:47.2]} 30... Qe3+
{[%clk 0:00:24.7]} 31. Kh2 {[%clk 0:00:47.2]} 31... Bxe4 {[%clk 0:00:24.1]} 32.
Qf6+ {[%clk 0:00:45.8]} 32... Kd7 {[%clk 0:00:23.9]} 33. Qf7+ {[%clk 0:00:44.4]}
33... Kd8 {[%clk 0:00:23.8]} 34. Bxe4 {[%clk 0:00:43.8]} 34... c6 {[%clk
0:00:11.8]} 35. Qf8+ {[%clk 0:00:41.4]} 35... Kc7 {[%clk 0:00:11.8]} 36. Qd6+
{[%clk 0:00:41.9]} 36... Kc8 {[%clk 0:00:11.9]} 37. Qxe6+ {[%clk 0:00:40.6]}
37... Kc7 {[%clk 0:00:11.9]} 38. Qd6+ {[%clk 0:00:41]} 38... Kc8 {[%clk
0:00:12.2]} 39. Bf5# {[%clk 0:00:40.9]} 1-0

[Event "Early-Titled-Tuesday-Blitz-December-26-2023"]
[Site "Chess.com"]
[Date "2023.12.26"]
[Round "11"]
[White "SARGISMV"]
[Black "MIss_MIaMI"]
[Result "1-0"]
[WhiteElo "2546"]
[BlackElo "2433"]
[TimeControl "180+1"]
[EndTime "10:05:02 PST"]
[Termination "SARGISMV won by checkmate"]

1. c4 {[%clk 0:03:00.9]} 1... e5 {[%clk 0:02:56.1]} 2. Nc3 {[%clk 0:03:00.8]}
2... f5 {[%clk 0:02:56.5]} 3. g3 {[%clk 0:03:00.9]} 3... Nf6 {[%clk 0:02:56.7]}
4. Bg2 {[%clk 0:03:01.3]} 4... Bb4 {[%clk 0:02:57.4]} 5. Nd5 {[%clk 0:03:00.9]}
5... Nxd5 {[%clk 0:02:57.8]} 6. cxd5 {[%clk 0:03:00.2]} 6... O-O {[%clk
0:02:54.2]} 7. Nf3 {[%clk 0:02:42.6]} 7... d6 {[%clk 0:02:49.1]} 8. O-O {[%clk
0:02:39.1]} 8... f4 {[%clk 0:02:35]} 9. d4 {[%clk 0:01:58.7]} 9... fxg3 {[%clk
0:02:18.6]} 10. hxg3 {[%clk 0:01:55.4]} 10... exd4 {[%clk 0:02:03.9]} 11. Nxd4
{[%clk 0:01:52.9]} 11... Qf6 {[%clk 0:01:59.2]} 12. Ne6 {[%clk 0:01:47]} 12...
Rf7 {[%clk 0:01:51]} 13. Bg5 {[%clk 0:01:41.7]} 13... Qxb2 {[%clk 0:01:46.9]}
14. Rb1 {[%clk 0:01:39.4]} 14... Qa3 {[%clk 0:01:46.9]} 15. Qc2 {[%clk
0:01:19.3]} 15... Na6 {[%clk 0:01:27.7]} 16. Be4 {[%clk 0:01:11.6]} 16... h6
{[%clk 0:01:05.4]} 17. Bh7+ {[%clk 0:01:05.8]} 17... Kh8 {[%clk 0:01:06]} 18.
Qg6 {[%clk 0:01:01.6]} 18... Bxe6 {[%clk 0:01:01.9]} 19. dxe6 {[%clk 0:00:59.4]}
19... Rff8 {[%clk 0:00:57.7]} 20. e7 {[%clk 0:00:33.4]} 20... Rfe8 {[%clk
0:00:20.3]} 21. Rb3 {[%clk 0:00:29.7]} 21... Qa5 {[%clk 0:00:19.6]} 22. Bxh6
{[%clk 0:00:22.1]} 22... Qe5 {[%clk 0:00:12.3]} 23. Bg5 {[%clk 0:00:19.2]} 23...
Bc5 {[%clk 0:00:06.3]} 24. Kg2 {[%clk 0:00:17]} 24... Qd5+ {[%clk 0:00:06]} 25.
Rf3 {[%clk 0:00:16.6]} 25... Qe6 {[%clk 0:00:06.4]} 26. Qxe6 {[%clk 0:00:15.8]}
26... Kxh7 {[%clk 0:00:03.1]} 27. Rh1# {[%clk 0:00:15]} 1-0